bitfinex/quotes_BTCUSD_20251102
["timestamp","ask_amount","ask_price","bid_price","bid_amount"]
[1762118466585,0.40194015,110170.0,110160.0,0.2362141]
[1762118466838,0.06194015,110170.0,110160.0,0.2362141]
[1762118467112,0.04232955,110170.0,110160.0,0.2362141]
[1762118469685,0.04228955,110170.0,110160.0,0.2362141]
[1762118471632,0.01501277,110170.0,110160.0,0.2362141]
[1762118473289,0.01501277,110170.0,110160.0,0.2634885]
[1762118492987,0.01501277,110170.0,110160.0,0.2362141]
[1762118494480,0.01501277,110170.0,110160.0,1.0857793]
[1762118494902,0.01501277,110170.0,110160.0,1.11304917]
[1762118495542,0.00101277,110170.0,110160.0,1.11004917]
[1762118495749,0.00401277,110170.0,110160.0,1.11804917]
[1762118495956,0.00401277,110170.0,110160.0,1.12204917]
[1762118522135,0.00401277,110170.0,110160.0,0.69726657]
[1762118522360,0.42879537,110170.0,110160.0,0.27248397]
[1762118522580,0.00401277,110170.0,110160.0,0.27248397]
[1762118523068,0.19757039,110170.0,110160.0,0.08292987]
[1762118523320,0.1815541,110160.0,110130.0,0.34077355]
[1762118523526,0.19315058,110150.0,110140.0,0.22074214]
[1762118523743,0.19315058,110150.0,110140.0,0.21776707]
[1762118523951,0.20817058,110150.0,110140.0,0.02702]
[1762118524171,0.20817058,110150.0,110140.0,0.01188]
[1762118524172,0.23287058,110150.0,110140.0,0.01188]
[1762118524408,0.65763986,110150.0,110130.0,0.24435214]
[1762118524625,0.65763986,110150.0,110140.0,0.18158707]
[1762118526164,0.66463986,110150.0,110140.0,0.18458707]
[1762118528701,0.66463986,110150.0,110140.0,0.003]
[1762118529318,0.66463986,110150.0,110140.0,0.18458707]
[1762118530441,0.66463986,110150.0,110140.0,0.003]
[1762118533794,0.69192172,110150.0,110140.0,0.003]
[1762118535218,0.69192172,110150.0,110140.0,0.18458707]
[1762118535459,0.69192172,110150.0,110140.0,0.003]
[1762118538709,0.69192172,110150.0,110140.0,0.18458707]
[1762118539094,0.69192172,110150.0,110140.0,0.003]
[1762118539962,0.69192172,110150.0,110140.0,0.18458707]
[1762118545446,0.51035114,110150.0,110140.0,0.18458707]
[1762118549820,0.51035114,110150.0,110140.0,0.20101707]
[1762118550252,0.51035114,110150.0,110140.0,0.18458707]
[1762118552172,0.52995857,110150.0,110140.0,0.18458707]
[1762118553256,0.50267671,110150.0,110140.0,0.18458707]
[1762118558334,0.07790743,110150.0,110140.0,0.18458707]
[1762118559864,0.50267671,110150.0,110140.0,0.18458707]
[1762118566027,0.68424729,110150.0,110140.0,0.18458707]
[1762118566233,0.50267671,110150.0,110140.0,0.18458707]
[1762118567261,0.68424729,110150.0,110140.0,0.18458707]
[1762118567470,0.50267671,110150.0,110140.0,0.18458707]
[1762118567670,0.68424729,110150.0,110140.0,0.18458707]
[1762118568292,0.50267671,110150.0,110140.0,0.18458707]
[1762118568498,0.02660743,110150.0,110140.0,0.23588707]
[1762118568704,0.007,110150.0,110140.0,0.23588707]
[1762118573896,0.007,110150.0,110140.0,0.66065635]
[1762118575177,0.02255,110150.0,110140.0,0.66065635]
[1762118577138,0.007,110150.0,110140.0,0.66065635]
[1762118578701,0.007,110150.0,110140.0,0.23588707]
[1762118578903,0.05911,110150.0,110140.0,0.19646707]
[1762118579378,0.03426,110150.0,110140.0,0.21150707]
[1762118579928,0.03426,110150.0,110140.0,0.23588707]
[1762118581587,0.01871,110150.0,110140.0,0.23588707]
[1762118581835,0.007,110150.0,110140.0,0.23588707]
[1762118582358,0.007,110150.0,110140.0,0.66065635]
[1762118584562,0.007,110150.0,110140.0,0.66071413]
[1762118590021,0.02255,110150.0,110140.0,0.66071413]
[1762118590243,0.02255,110150.0,110140.0,0.63633413]
[1762118590452,0.05911,110150.0,110140.0,0.18458707]
[1762118590860,0.05911,110150.0,110140.0,0.19962707]
[1762118591071,0.05911,110150.0,110140.0,0.18458707]
[1762118591279,0.48393706,110150.0,110140.0,0.18458707]
[1762118591483,0.66550764,110150.0,110140.0,0.18458707]
[1762118601456,0.66550764,110150.0,110140.0,0.003]
[1762118601824,0.66550764,110150.0,110140.0,0.0011217]
[1762118602005,0.66550764,110150.0,110140.0,0.18270877]
[1762118603004,0.67457635,110150.0,110140.0,0.18270877]
[1762118603881,0.66550764,110150.0,110140.0,0.18270877]
[1762118604234,0.66550764,110150.0,110140.0,0.0011217]
[1762118605725,0.05911,110150.0,110140.0,0.18270877]
[1762118605946,0.05911,110150.0,110140.0,0.19827877]
[1762118606363,0.05911,110150.0,110140.0,0.18270877]
[1762118610893,0.03426,110150.0,110140.0,0.23253877]
[1762118611098,0.007,110150.0,110140.0,0.65736583]
[1762118611336,0.007,110150.0,110140.0,0.23253877]
[1762118611510,0.007,110150.0,110140.0,0.65736583]
[1762118615345,0.02322,110150.0,110140.0,0.20986877]
[1762118615551,0.007,110150.0,110140.0,0.65736583]
[1762118628727,0.007,110150.0,110140.0,0.23253877]
[1762118628930,0.007,110150.0,110140.0,0.65736583]
[1762118638706,0.007,110150.0,110140.0,1.08219289]
[1762118639910,0.007,110150.0,110140.0,0.65736583]
[1762118640768,0.007,110150.0,110140.0,1.08219289]
[1762118642265,0.007,110150.0,110140.0,0.65736583]
[1762118642480,0.007,110150.0,110140.0,1.08219289]
[1762118644448,0.007,110150.0,110140.0,0.65733428]
[1762118668049,0.006,110150.0,110140.0,0.65733428]
[1762118668682,0.006,110150.0,110140.0,0.66333428]
[1762118669037,0.00096442,110160.0,110150.0,0.18157058]
[1762118669274,0.00096442,110160.0,110150.0,0.23187058]
[1762118670081,0.00096442,110160.0,110150.0,0.23487058]
[1762118670315,0.00796442,110160.0,110150.0,0.23487058]
[1762118670729,0.00796442,110160.0,110150.0,0.23587058]
[1762118673108,0.02321442,110160.0,110150.0,0.23587058]
[1762118673324,0.03455442,110160.0,110150.0,0.21223058]
[1762118673760,0.03326909,110160.0,110150.0,0.21223058]
[1762118673994,0.21482319,110160.0,110150.0,0.21223058]
[1762118674424,0.03326909,110160.0,110150.0,0.21223058]
[1762118676162,0.05812909,110160.0,110150.0,0.21223058]
[1762118676380,0.23968319,110160.0,110150.0,0.21223058]
[1762118676835,0.23968319,110160.0,110150.0,0.18557058]
[1762118678811,0.26695868,110160.0,110150.0,0.18557058]
[1762118681141,0.26695868,110160.0,110150.0,0.004]
[1762118684375,0.26695868,110160.0,110150.0,0.18557058]
[1762118684582,0.26695868,110160.0,110150.0,0.004]
[1762118686729,0.71137378,110160.0,110150.0,0.004]
[1762118687588,0.70469469,110160.0,110150.0,0.001]
[1762118688005,0.18158388,110150.0,110130.0,0.19623279]
[1762118688362,0.01666,110140.0,110130.0,0.23520279]
[1762118689225,0.01666,110140.0,110130.0,0.23514179]
[1762118689856,0.01666,110140.0,110130.0,0.23614179]
[1762118690064,0.01666,110140.0,110130.0,0.23514179]
[1762118690240,0.01666,110140.0,110130.0,0.24014179]
[1762118690754,0.01666,110140.0,110130.0,0.23714179]
[1762118690958,0.01966,110140.0,110130.0,0.24614179]
[1762118691178,0.01966,110140.0,110130.0,0.24414179]
[1762118691393,0.01966,110140.0,110130.0,0.23614179]
[1762118691570,0.01666,110140.0,110130.0,0.23614179]
[1762118691805,0.05597,110140.0,110130.0,0.21928179]
[1762118692348,0.0313,110140.0,110130.0,0.21928179]
[1762118692971,0.0313,110140.0,110130.0,0.24214179]
[1762118693232,0.0313,110140.0,110130.0,0.21928179]
[1762118694432,0.0313,110140.0,110130.0,0.24214179]
[1762118699879,0.01464,110140.0,110130.0,0.24214179]
[1762118700281,0.003,110140.0,110130.0,0.24214179]
[1762118706388,0.003,110140.0,110130.0,0.66705887]
[1762118710158,0.003,110140.0,110130.0,0.24214179]
[1762118710496,0.003,110140.0,110130.0,0.66705887]
[1762118760627,0.003,110140.0,110130.0,0.6943384]
[1762118762255,0.003,110140.0,110130.0,0.26942132]
[1762118762460,0.003,110140.0,110130.0,0.6943384]
[1762118766497,0.003,110140.0,110130.0,0.69429423]
[1762118792001,0.003,110140.0,110130.0,1.11916714]
[1762118809613,0.003,110140.0,110130.0,1.26716714]
[1762118828571,0.003,110140.0,110130.0,1.2669776]
[1762118834248,0.03496,110160.0,110150.0,0.18157058]
[1762118834464,0.03496,110160.0,110150.0,0.60634872]
[1762118834679,0.05094,110160.0,110150.0,0.60634872]
[1762118835111,0.05094,110160.0,110150.0,0.633625]
[1762118835525,0.05694,110160.0,110150.0,0.636625]
[1762118838104,0.05694,110160.0,110150.0,0.652835]
[1762118838325,0.03335,110160.0,110150.0,0.665005]
[1762118846872,0.05611,110160.0,110150.0,0.665005]
[1762118847949,0.03335,110160.0,110150.0,0.665005]
[1762118848391,0.006,110160.0,110150.0,0.688695]
[1762118861132,0.02165,110160.0,110150.0,0.688695]
[1762118861312,0.0331,110160.0,110150.0,0.665005]
[1762118861547,0.05586,110160.0,110150.0,0.665005]
[1762118862894,0.0331,110160.0,110150.0,0.665005]
[1762118863125,0.0331,110160.0,110150.0,0.688695]
[1762118863752,0.05586,110160.0,110150.0,0.665005]
[1762118864398,0.0331,110160.0,110150.0,0.688695]
[1762118865453,0.0331,110160.0,110150.0,0.665005]
[1762118870007,0.0331,110160.0,110150.0,0.689465]
[1762118888386,0.006,110160.0,110150.0,0.689465]
[1762118890457,0.006,110160.0,110150.0,0.68941605]
[1762118931426,0.02247,110160.0,110150.0,0.68941605]
[1762118934164,0.02247,110160.0,110150.0,0.26468686]
[1762118934367,0.02247,110160.0,110150.0,0.68941605]
[1762118935975,0.006,110160.0,110150.0,0.68941605]
[1762118936969,0.02247,110160.0,110150.0,0.64874605]
[1762118937184,0.05681,110160.0,110150.0,0.63657605]
[1762118939150,0.05681,110160.0,110150.0,0.65177605]
[1762118939367,0.2383641,110160.0,110150.0,0.65177605]
[1762118939779,0.05681,110160.0,110150.0,0.63657605]
[1762118940191,0.2383641,110160.0,110150.0,0.63657605]
[1762118940728,0.05681,110160.0,110150.0,0.63657605]
[1762118941371,0.2383641,110160.0,110150.0,0.63657605]
[1762118941638,0.2383641,110160.0,110150.0,0.03027628]
[1762118941850,0.25798058,110160.0,110150.0,0.003]
[1762118942056,0.28525847,110160.0,110150.0,0.003]
[1762118942495,0.37507748,110160.0,110150.0,0.003]
[1762118942958,0.71507748,110160.0,110150.0,0.003]
[1762118948485,0.62525847,110160.0,110150.0,0.003]
[1762118956592,1.050162,110160.0,110150.0,0.003]
[1762118960747,0.62525847,110160.0,110150.0,0.003]
[1762118964028,1.050162,110160.0,110150.0,0.003]
[1762118964229,0.62525847,110160.0,110150.0,0.003]
[1762118964658,0.71507748,110160.0,110150.0,0.003]
[1762118969798,1.13998101,110160.0,110150.0,0.003]
[1762118970532,0.71507748,110160.0,110150.0,0.003]
[1762118970757,1.13998101,110160.0,110150.0,0.003]
[1762118971405,0.71507748,110160.0,110150.0,0.003]
[1762118977514,1.13998101,110160.0,110150.0,0.003]
[1762118991052,1.13998101,110160.0,110150.0,0.18457058]
[1762118991261,1.13998101,110160.0,110150.0,0.003]
[1762118993682,1.04951991,110160.0,110150.0,0.003]
[1762119000529,1.04951991,110160.0,110150.0,0.18457058]
[1762119000739,1.04951991,110160.0,110150.0,0.003]
[1762119000950,1.04951991,110160.0,110150.0,0.18457058]
[1762119005128,0.62461638,110160.0,110150.0,0.18457058]
[1762119005544,0.44306228,110160.0,110150.0,0.18457058]
[1762119005752,0.44306228,110160.0,110150.0,0.60947411]
[1762119005969,0.42017228,110160.0,110150.0,0.62511411]
[1762119006194,0.42017228,110160.0,110150.0,0.63702411]
[1762119007704,0.42017228,110160.0,110150.0,0.21212058]
[1762119007929,0.42017228,110160.0,110150.0,0.63702411]
[1762119009235,0.44327228,110160.0,110150.0,0.63702411]
[1762119010533,0.44327228,110160.0,110150.0,0.62124923]
[1762119011346,0.44327228,110160.0,110150.0,0.60933923]
[1762119011575,0.41599439,110160.0,110150.0,0.60933923]
[1762119011791,0.41599439,110160.0,110150.0,0.63661707]
[1762119015254,0.59754849,110160.0,110150.0,0.63661707]
[1762119016458,0.41599439,110160.0,110150.0,0.63661707]
[1762119017666,0.59754849,110160.0,110150.0,0.63661707]
[1762119019963,0.41599439,110160.0,110150.0,0.63661707]
[1762119020176,0.59754849,110160.0,110150.0,0.63661707]
[1762119020421,0.41599439,110160.0,110150.0,0.63661707]
[1762119020844,0.59754849,110160.0,110150.0,0.63661707]
[1762119021049,0.41599439,110160.0,110150.0,0.63661707]
[1762119022316,0.41599439,110160.0,110150.0,0.65275707]
[1762119023371,0.41598849,110160.0,110150.0,0.65275707]
[1762119025134,0.59754259,110160.0,110150.0,0.63661707]
[1762119026626,0.41598849,110160.0,110150.0,0.63661707]
[1762119027479,0.39288849,110160.0,110150.0,0.65206707]
[1762119027691,0.00535791,110160.0,110150.0,0.68722707]
[1762119027903,0.00535791,110160.0,110150.0,1.11199572]
[1762119028131,0.00535791,110160.0,110150.0,0.68722707]
[1762119032189,0.00535791,110160.0,110150.0,0.83522707]
[1762119042669,0.00535791,110160.0,110150.0,1.25999572]
[1762119044058,0.00535791,110160.0,110150.0,1.11199572]
[1762119044935,0.00026934,110170.0,110160.0,0.1815541]
[1762119045142,0.00026934,110170.0,110160.0,1.09931681]
[1762119045355,0.00026934,110170.0,110160.0,1.0811614]
[1762119045772,0.00026934,110170.0,110160.0,1.10843285]
[1762119046816,0.00026934,110170.0,110160.0,1.11043285]
[1762119047459,0.00026934,110170.0,110160.0,1.11243285]
[1762119047668,0.00526934,110170.0,110160.0,1.11243285]
[1762119050243,0.00526934,110170.0,110160.0,1.26043285]
[1762119070421,0.00526934,110170.0,110160.0,1.25997465]
[1762119071686,0.00526934,110170.0,110160.0,1.2327032]
[1762119087625,0.00526934,110170.0,110160.0,1.65724275]
[1762119091071,0.00026934,110170.0,110160.0,1.65524275]
[1762119091517,0.00226934,110170.0,110160.0,1.65724275]
[1762119091874,0.00226934,110170.0,110160.0,4.66224275]
[1762119119388,0.00226934,110170.0,110160.0,3.05907]
[1762119119618,0.05255934,110170.0,110160.0,0.2180241]
[1762119119839,0.05255934,110170.0,110160.0,0.1905541]
[1762119120060,0.05255934,110170.0,110160.0,0.61509365]
[1762119120535,0.05055934,110170.0,110160.0,0.62734365]
[1762119120749,0.03597934,110170.0,110160.0,0.64170365]
[1762119121262,0.05855934,110170.0,110160.0,0.62545365]
[1762119121502,0.24009696,110170.0,110160.0,0.1895541]
[1762119121758,0.24009696,110170.0,110160.0,0.003]
[1762119121974,0.66463651,110170.0,110160.0,0.004]
[1762119123315,0.66463651,110170.0,110160.0,0.1855541]
[1762119123773,0.66463651,110170.0,110160.0,0.004]
[1762119124242,0.66463651,110170.0,110160.0,0.1855541]
[1762119124457,0.66463651,110170.0,110160.0,0.004]
[1762119124687,1.08917606,110170.0,110160.0,0.004]
[1762119125157,1.54627068,110170.0,110160.0,0.004]
[1762119125394,1.56585757,110170.0,110160.0,0.004]
[1762119126113,1.60203985,110170.0,110160.0,0.004]
[1762119126389,0.18158351,110150.0,110130.0,0.19166637]
[1762119126633,0.45224955,110140.0,110130.0,0.19166637]
[1762119126903,0.47482955,110140.0,110130.0,0.19166637]
[1762119127372,0.19290351,110150.0,110140.0,0.18158707]
[1762119127373,0.01132,110150.0,110140.0,0.18158707]
[1762119127583,0.45843955,110150.0,110140.0,0.18158707]
[1762119127824,0.47482955,110150.0,110140.0,0.18158707]
[1762119128714,0.47582955,110150.0,110140.0,0.18158707]
[1762119130074,0.48282955,110150.0,110140.0,0.18458707]
[1762119132489,0.4832608,110150.0,110140.0,0.18458707]
[1762119134548,0.05829,110150.0,110140.0,0.20083707]
[1762119134779,0.4832608,110150.0,110140.0,0.18458707]
[1762119136454,0.05829,110150.0,110140.0,0.18458707]
[1762119137501,0.4832608,110150.0,110140.0,0.18458707]
[1762119139447,0.05829,110150.0,110140.0,0.18458707]
[1762119156044,0.0855698,110150.0,110140.0,0.18458707]
[1762119156948,0.0855698,110150.0,110140.0,0.19977707]
[1762119157160,0.0629898,110150.0,110140.0,0.65962787]
[1762119158021,0.0629898,110150.0,110140.0,0.63610787]
[1762119158233,0.0872798,110150.0,110140.0,0.63610787]
[1762119159497,0.0629898,110150.0,110140.0,0.63610787]
[1762119161008,0.0465998,110150.0,110140.0,0.65962787]
[1762119161445,0.0622998,110150.0,110140.0,0.65962787]
[1762119162159,0.0465998,110150.0,110140.0,0.65962787]
[1762119162435,0.0622998,110150.0,110140.0,0.65962787]
[1762119163357,0.0622998,110150.0,110140.0,0.63610787]
[1762119167238,0.0622998,110150.0,110140.0,0.65873787]
[1762119168090,0.008,110150.0,110140.0,0.65873787]
[1762119168707,0.02404,110150.0,110140.0,0.65873787]
[1762119173755,0.02404,110150.0,110140.0,0.23376707]
[1762119175996,0.008,110150.0,110140.0,0.23376707]
[1762119177682,0.008,110150.0,110140.0,0.65873787]
[1762119190503,0.008,110150.0,110140.0,0.80673787]
[1762119191824,0.008,110150.0,110140.0,0.83401383]
[1762119192503,0.008,110150.0,110140.0,1.25863955]
[1762119199532,0.023,110150.0,110140.0,0.40904303]
[1762119199705,0.05902,110150.0,110140.0,0.79602129]
[1762119200567,0.05902,110150.0,110140.0,0.81112129]
[1762119200971,0.03434,110150.0,110140.0,0.81112129]
[1762119206499,0.03434,110150.0,110140.0,0.83378129]
[1762119207136,0.03434,110150.0,110140.0,0.81112129]
[1762119208989,0.0571,110150.0,110140.0,0.81112129]
[1762119209447,0.0571,110150.0,110140.0,0.78384533]
[1762119210050,0.03434,110150.0,110140.0,0.78384533]
[1762119211037,0.03434,110150.0,110140.0,0.80650533]
[1762119212785,0.03434,110150.0,110140.0,0.78384533]
[1762119213199,0.0571,110150.0,110140.0,0.78384533]
[1762119213639,0.0571,110150.0,110140.0,0.76874533]
[1762119213838,0.0571,110150.0,110140.0,0.78379533]
[1762119219943,0.0571,110150.0,110140.0,0.63579533]
[1762119222574,0.03434,110150.0,110140.0,0.63579533]
[1762119222786,0.03434,110150.0,110140.0,0.65845533]
[1762119225661,0.03434,110150.0,110140.0,0.80645533]
[1762119230482,0.008,110150.0,110140.0,0.80645533]
[1762119230693,0.008,110150.0,110140.0,1.23125359]
[1762119244262,0.008,110150.0,110140.0,1.19354359]
[1762119244488,0.03606,110150.0,110140.0,0.78476533]
[1762119245147,0.03606,110150.0,110140.0,0.80833533]
[1762119246886,0.01969,110150.0,110140.0,0.80833533]
[1762119247100,0.008,110150.0,110140.0,0.80833533]
[1762119247309,0.008,110150.0,110140.0,1.23313359]
[1762119249270,0.008,110150.0,110140.0,1.08513359]
[1762119254379,0.008,110150.0,110140.0,0.66034858]
[1762119276623,0.008,110150.0,110140.0,0.68762476]
[1762119292980,0.00740573,110150.0,110140.0,0.68762476]
[1762119296158,0.00740573,110150.0,110140.0,0.83562476]
[1762119302074,0.00740573,110150.0,110140.0,0.68762476]
[1762119314428,0.00740573,110150.0,110140.0,1.11243759]
[1762119318805,0.02298573,110150.0,110140.0,1.11243759]
[1762119319022,0.00740573,110150.0,110140.0,1.11243759]
[1762119319448,0.00740573,110150.0,110140.0,1.26043759]
[1762119322296,0.00740573,110150.0,110140.0,0.41081325]
[1762119322508,0.00740573,110150.0,110140.0,0.83562542]
[1762119322989,0.05824573,110150.0,110140.0,0.38724325]
[1762119323221,0.05824573,110150.0,110140.0,0.78467542]
[1762119324116,0.05824573,110150.0,110140.0,0.35986325]
[1762119324354,0.05824573,110150.0,110140.0,0.78467542]
[1762119324582,0.05824573,110150.0,110140.0,0.80072542]
[1762119325264,0.05824573,110150.0,110140.0,0.65272542]
[1762119325481,0.23981631,110150.0,110140.0,0.63667542]
[1762119325754,0.05824573,110150.0,110140.0,0.63667542]
[1762119326848,0.05824573,110150.0,110140.0,0.65272542]
[1762119327472,0.05824573,110150.0,110140.0,0.63667542]
[1762119329611,0.05824573,110150.0,110140.0,0.65272542]
[1762119330027,0.21624631,110150.0,110140.0,0.68839542]
[1762119330285,0.21624631,110150.0,110140.0,0.66356542]
[1762119330510,0.03467573,110150.0,110140.0,0.66356542]
[1762119331227,0.21624631,110150.0,110140.0,0.66356542]
[1762119332107,0.21624631,110150.0,110140.0,0.68839542]
[1762119332304,0.21624631,110150.0,110140.0,0.66356542]
[1762119332444,0.24030631,110150.0,110140.0,0.66356542]
[1762119332654,0.24030631,110150.0,110140.0,0.64751542]
[1762119334211,0.05873573,110150.0,110140.0,0.66356542]
[1762119334419,0.24030631,110150.0,110140.0,0.66356542]
[1762119334628,0.05873573,110150.0,110140.0,0.66356542]
[1762119335652,0.24030631,110150.0,110140.0,0.66356542]
[1762119336517,0.05873573,110150.0,110140.0,0.66356542]
[1762119337120,0.01909573,110150.0,110140.0,1.08837759]
[1762119337274,0.00740573,110150.0,110140.0,1.11320759]
[1762119338563,0.007,110150.0,110140.0,1.11320759]
[1762119338766,0.03886393,110170.0,110160.0,0.1815541]
[1762119339017,0.12963686,110170.0,110160.0,0.60636627]
[1762119339226,0.16907686,110170.0,110160.0,0.60636627]
[1762119339435,0.16907686,110170.0,110160.0,0.63364086]
[1762119340077,0.17707686,110170.0,110160.0,0.63664086]
[1762119342532,0.17707686,110170.0,110160.0,0.65269086]
[1762119343811,0.17707686,110170.0,110160.0,0.21182869]
[1762119344022,0.17707686,110170.0,110160.0,0.62541627]
[1762119344463,0.17707686,110170.0,110160.0,0.65269086]
[1762119345853,0.08630393,110170.0,110160.0,0.65269086]
[1762119346086,0.08630393,110170.0,110160.0,0.62541627]
[1762119347941,0.06224393,110170.0,110160.0,0.63677627]
[1762119348154,0.00826934,110170.0,110160.0,1.08585844]
[1762119348397,0.00826934,110170.0,110160.0,0.6883198]
[1762119348753,0.00826934,110170.0,110160.0,1.11313197]
[1762119348967,0.00826934,110170.0,110160.0,0.6883198]
[1762119349726,0.00826934,110170.0,110160.0,1.11313197]
[1762119350934,0.00826934,110170.0,110160.0,0.6883198]
[1762119352752,0.02327934,110170.0,110160.0,0.23923763]
[1762119352962,0.03459934,110170.0,110160.0,0.6640498]
[1762119360571,0.03459934,110170.0,110160.0,0.6883198]
[1762119360773,0.00826934,110170.0,110160.0,0.6883198]
[1762119366962,0.18980696,110170.0,110160.0,0.26350763]
[1762119367192,0.23894696,110170.0,110160.0,0.03027353]
[1762119367394,0.77414901,110170.0,110160.0,0.003]
[1762119367593,0.8014241,110170.0,110160.0,0.003]
[1762119367971,1.69223756,110170.0,110160.0,0.003]
[1762119368174,1.20209723,110170.0,110160.0,0.003]
[1762119368456,1.17760638,110170.0,110160.0,0.003]
[1762119376330,1.17773537,110170.0,110160.0,0.003]
[1762119393972,1.20222622,110170.0,110160.0,0.003]
[1762119397347,1.25193991,110170.0,110160.0,0.003]
[1762119400077,1.34175892,110170.0,110160.0,0.003]
[1762119402538,1.30906847,110170.0,110160.0,0.003]
[1762119404605,1.29204523,110170.0,110160.0,0.003]
[1762119409325,1.29204523,110170.0,110160.0,0.002939]
[1762119416034,0.86710407,110170.0,110160.0,0.002939]
[1762119416259,1.29204523,110170.0,110160.0,0.002939]
[1762119417213,0.77728506,110170.0,110160.0,0.1844931]
[1762119431625,0.75000997,110170.0,110160.0,0.1844931]
[1762119433199,0.72551912,110170.0,110160.0,0.1844931]
[1762119433398,0.75000997,110170.0,110160.0,0.1844931]
[1762119433884,0.75000997,110170.0,110160.0,0.002939]
[1762119434069,0.83982898,110170.0,110160.0,0.1844931]
[1762119438671,0.75000997,110170.0,110160.0,0.1844931]
[1762119441368,0.66652684,110170.0,110160.0,0.2119331]
[1762119441998,0.69065684,110170.0,110160.0,0.1844931]
[1762119447299,0.69065684,110170.0,110160.0,0.2005831]
[1762119447550,0.36788629,110170.0,110160.0,0.66152602]
[1762119447781,0.36788629,110170.0,110160.0,0.2366931]
[1762119448215,0.36787869,110170.0,110160.0,0.2366931]
[1762119453163,0.54941631,110170.0,110160.0,0.2366931]
[1762119453393,0.56530631,110170.0,110160.0,0.2366931]
[1762119453608,0.38376869,110170.0,110160.0,0.2366931]
[1762119455412,0.02787869,110170.0,110160.0,0.66152602]
[1762119455611,0.00826934,110170.0,110160.0,0.66152602]
[1762119457292,0.00826934,110170.0,110160.0,0.68879925]
[1762119460582,0.00826934,110170.0,110160.0,0.26396633]
[1762119460790,0.00826934,110170.0,110160.0,0.68879925]
[1762119463898,0.00826934,110170.0,110160.0,0.68836336]
[1762119488170,0.00826934,110170.0,110160.0,1.11319628]
[1762119488589,0.00826934,110170.0,110160.0,0.68836336]
[1762119491265,0.00826934,110170.0,110160.0,1.11319628]
[1762119491447,0.00804846,110170.0,110160.0,0.68836336]
[1762119491654,0.00804846,110170.0,110160.0,0.66109013]
[1762119492014,0.00826932,110170.0,110160.0,0.66109013]
[1762119492447,0.03554084,110170.0,110160.0,0.66109013]
[1762119492852,0.03554084,110170.0,110160.0,1.08592305]
[1762119493510,0.00826932,110170.0,110160.0,1.08592305]
[1762119494211,0.00126932,110170.0,110160.0,1.08341994]
[1762119494418,0.00026932,110170.0,110160.0,1.08341994]
[1762119494848,0.00026932,110170.0,110160.0,1.51025286]
[1762119495100,0.00026932,110170.0,110160.0,4.85025286]
[1762119495325,0.00026932,110170.0,110160.0,4.87752019]
[1762119496217,0.00226932,110170.0,110160.0,4.88052019]
[1762119497825,0.00226932,110170.0,110160.0,4.8896203]
[1762119500038,0.00226932,110170.0,110160.0,5.0376203]
[1762119500481,0.00226932,110170.0,110160.0,4.61211246]
[1762119504556,0.00226932,110170.0,110160.0,4.67936373]
[1762119525274,1e-08,110170.0,110160.0,4.67936373]
[1762119525475,1e-08,110170.0,110160.0,4.71554601]
[1762119526157,1e-08,110170.0,110160.0,4.71354601]
[1762119526288,1e-08,110170.0,110160.0,4.72254601]
[1762119526710,0.72858707,110220.0,110210.0,0.18147173]
[1762119526937,0.72867506,110220.0,110210.0,0.18147173]
[1762119527178,0.74463506,110220.0,110210.0,0.18147173]
[1762119527353,0.74573877,110220.0,110210.0,0.18147173]
[1762119527764,0.72622708,110220.0,110210.0,0.18347173]
[1762119530500,0.72622708,110220.0,110210.0,0.002]
[1762119530708,0.72622708,110220.0,110210.0,0.18347173]
[1762119532075,0.72622708,110220.0,110210.0,0.002]
[1762119534520,0.75073877,110220.0,110210.0,0.002]
[1762119537447,1.17523423,110220.0,110210.0,0.002]
[1762119538718,1.17823423,110220.0,110210.0,0.002]
[1762119539177,0.18148331,110210.0,110190.0,0.22011343]
[1762119539392,0.10673293,110200.0,110190.0,0.21264343]
[1762119539618,0.14148293,110200.0,110190.0,0.21264343]
[1762119540452,0.32297113,110200.0,110190.0,0.21564343]
[1762119540873,0.32297113,110200.0,110190.0,0.21264343]
[1762119541928,0.32297113,110200.0,110190.0,0.19056343]
[1762119542147,0.32597113,110200.0,110190.0,0.1925799]
[1762119542353,0.32597113,110200.0,110190.0,0.18350467]
[1762119542576,0.32597113,110200.0,110190.0,0.002]
[1762119542790,0.34558373,110200.0,110190.0,0.002]
[1762119543010,0.37285118,110200.0,110190.0,0.002]
[1762119544615,0.37351352,110200.0,110190.0,0.002]
[1762119546990,0.18150467,110190.0,110180.0,0.18152095]
[1762119547192,0.23221467,110190.0,110180.0,0.18152095]
[1762119547753,0.23221467,110190.0,110180.0,0.18152114]
[1762119548179,0.25948326,110190.0,110180.0,0.18152114]
[1762119548606,0.26148326,110190.0,110180.0,0.18152114]
[1762119549247,0.26648326,110190.0,110180.0,0.18452114]
[1762119551568,0.23921467,110190.0,110180.0,0.18452114]
[1762119552628,0.23965627,110190.0,110180.0,0.18452114]
[1762119552767,0.23965627,110190.0,110180.0,0.003]
[1762119553410,0.2669268,110190.0,110180.0,0.003]
[1762119555070,0.2669268,110190.0,110180.0,0.18452114]
[1762119555289,0.2669268,110190.0,110180.0,0.003]
[1762119555527,0.2669268,110190.0,110180.0,0.18452114]
[1762119557149,0.2669268,110190.0,110180.0,0.003]
[1762119558430,0.2669268,110190.0,110180.0,0.18452114]
[1762119560195,0.2669268,110190.0,110180.0,0.003]
[1762119560608,0.2669268,110190.0,110180.0,0.18452114]
[1762119562221,0.08542213,110190.0,110180.0,0.18452114]
[1762119562363,0.2669268,110190.0,110180.0,0.18452114]
[1762119566049,0.2669268,110190.0,110180.0,0.003]
[1762119567243,0.2669268,110190.0,110180.0,0.18452114]
[1762119568316,0.04647213,110190.0,110180.0,0.6361782]
[1762119568498,0.06306213,110190.0,110180.0,0.6361782]
[1762119568725,0.08643213,110190.0,110180.0,0.6361782]
[1762119571161,0.08643213,110190.0,110180.0,0.6092082]
[1762119577897,0.08643213,110190.0,110180.0,0.18452114]
[1762119578098,0.08643213,110190.0,110180.0,0.6092082]
[1762119582405,0.2679368,110190.0,110180.0,0.6092082]
[1762119582654,0.28752511,110190.0,110180.0,0.6092082]
[1762119582863,0.10602044,110190.0,110180.0,0.6092082]
[1762119583066,0.08643213,110190.0,110180.0,0.6092082]
[1762119583271,0.2679368,110190.0,110180.0,0.6092082]
[1762119583390,0.28752511,110190.0,110180.0,0.6092082]
[1762119583842,0.10602044,110190.0,110180.0,0.6092082]
[1762119584094,0.08643213,110190.0,110180.0,0.6092082]
[1762119586475,0.08643213,110190.0,110180.0,0.18452114]
[1762119586672,0.08643213,110190.0,110180.0,0.6092082]